{"text_format":"3","workbook":"xlsx","n_sheets":2,"sheets":["INÍCIO","FERRAMENTA DE ORÇAMENTO"],"not_rendered":{"defined_names":2},"read":"whole","date_system":"1900"}

{"sheet":"INÍCIO","index":0,"n_rows":7,"n_cols":2,"rows_kept":7}
[null,"SOBRE ESTE MODELO"]
[null,"Acompanhe o Investimento inicial no site, seus Benefícios e Custos usando esta Ferramenta de orçamento de site."]
[null,"Preencha com o Nome da empresa e a Data."]
[null,"Insira os detalhes nas tabelas para calcular automaticamente os Totais e as Métricas de avaliação."]
[null,"Observação:  "]
[null,"há instruções adicionais na coluna A de cada planilha FERRAMENTA DE ORÇAMENTO. Este texto está oculto de propósito. Para removê-lo, selecione a coluna A e selecione Excluir. Para reexibir o texto, selecione a coluna A e altere a cor da fonte."]
[null,"Para saber mais sobre as tabelas na planilha, pressione Shift e F10 em uma tabela, selecione a opção TABELA e depois TEXTO ALTERNATIVO."]

{"sheet":"FERRAMENTA DE ORÇAMENTO","index":1,"n_rows":43,"n_cols":6,"rows_kept":43,"merged":[[14,1,14,5],[22,1,22,5],[30,1,30,5],[38,1,38,5]]}
["Crie um Orçamento de site nesta planilha. Instruções úteis sobre como usar esta planilha estão nas células desta coluna. Pressione Seta para baixo para começar."]
["Insira o Nome da empresa na célula à direita.","Nome da empresa"]
["O título desta planilha está na célula à direita.","Ferramenta de orçamento de site"]
["Insira a data na célula à direita.","Data"]
["A dica está na célula à direita.","As células em cinza contêm cálculos que não devem ser alterados."]
["Insira detalhes na tabela Taxa, começando na célula à direita. A próxima instrução está na célula A10.","Dados da empresa","Taxa"]
[null,"Taxa de retorno obrigatória",{"v":0.1,"d":"10%"}]
[null,"Alíquota de imposto",{"v":0.3,"d":"30%"}]
[]
["Insira detalhes na tabela Investimento inicial, começando na célula à direita. A próxima instrução está na célula A16.","Investimento inicial no site","ANO","1","2","3"]
[null,"Hardware (por exemplo, servidores)",{"v":25000,"d":"R$ 25,000.00"}]
[null,"Software (por exemplo, o software catálogo de comércio eletrônico)",{"v":15000,"d":"R$ 15,000.00"}]
[null,"Desenvolvimento (por exemplo, desenvolvimento e design de sites de terceiros)",{"v":150000,"d":"R$ 150,000.00"}]
[null,"Investimentos totais iniciais",{"$f":"SUBTOTAL(109,InvestimentoInicial[ANO])","v":{"v":190000,"d":"R$ 190,000.00"}}]
[]
["Insira detalhes na tabela Benefícios, começando na célula à direita. A próxima instrução está na célula A24.","Benefícios do site","ANO","1","2","3"]
[null,"Vendas diretas",null,{"v":15000,"d":"R$ 15,000.00"},{"v":50000,"d":"R$ 50,000.00"},{"v":75000,"d":"R$ 75,000.00"}]
[null,"Vendas incrementais resultantes da eficácia promocional/de vendedor aprimorada",null,{"v":25000,"d":"R$ 25,000.00"},{"v":25000,"d":"R$ 25,000.00"},{"v":25000,"d":"R$ 25,000.00"}]
[null,"Vendas incrementais resultantes de uma participação maior do parceiro",null,{"v":25000,"d":"R$ 25,000.00"},{"v":25000,"d":"R$ 25,000.00"},{"v":25000,"d":"R$ 25,000.00"}]
[null,"Custos de viagem reduzidos",null,{"v":25000,"d":"R$ 25,000.00"},{"v":25000,"d":"R$ 25,000.00"},{"v":25000,"d":"R$ 25,000.00"}]
[null,"Custos de atendimento ao cliente reduzidos",null,{"v":50000,"d":"R$ 50,000.00"},{"v":50000,"d":"R$ 50,000.00"},{"v":50000,"d":"R$ 50,000.00"}]
[null,"Benefícios totais",null,{"$f":"SUBTOTAL(109,Benefícios[1])","v":{"v":140000,"d":"R$ 140,000.00"}},{"$f":"SUBTOTAL(109,Benefícios[2])","v":{"v":175000,"d":"R$ 175,000.00"}},{"$f":"SUBTOTAL(109,Benefícios[3])","v":{"v":200000,"d":"R$ 200,000.00"}}]
[]
["Insira detalhes na tabela Custos, começando na célula à direita. Os valores são calculados automaticamente na célula que contém as fórmulas. A próxima instrução está na célula A32.","Custos (excluindo investimentos capital inicial)","ANO","1","2","3"]
[null,"Custo de vendas",null,{"v":7500,"d":"R$ 7,500.00"},{"v":25000,"d":"R$ 25,000.00"},{"v":37500,"d":"R$ 37,500.00"}]
[null,"Manutenção",null,{"v":15000,"d":"R$ 15,000.00"},{"v":15000,"d":"R$ 15,000.00"},{"v":15000,"d":"R$ 15,000.00"}]
[null,"Gerenciamento de projetos, suporte técnico",null,{"v":35000,"d":"R$ 35,000.00"},{"v":35000,"d":"R$ 35,000.00"},{"v":35000,"d":"R$ 35,000.00"}]
[null,"Publicidade online, registro do mecanismo de pesquisa",null,{"v":10000,"d":"R$ 10,000.00"},{"v":10000,"d":"R$ 10,000.00"},{"v":10000,"d":"R$ 10,000.00"}]
[null,"Depreciação nas despesas de capital (o cálculo utiliza um período de três anos)",null,{"$f":"InvestimentoInicial[[#Totals],[ANO]]/3","v":{"v":63333.333333333336,"d":"R$ 63,333.33"}},{"$f":"InvestimentoInicial[[#Totals],[ANO]]/3","v":{"v":63333.333333333336,"d":"R$ 63,333.33"}},{"$f":"InvestimentoInicial[[#Totals],[ANO]]/3","v":{"v":63333.333333333336,"d":"R$ 63,333.33"}}]
[null,"Custos totais",null,{"$f":"SUBTOTAL(109,Custos[1])","v":{"v":130833.33333333334,"d":"R$ 130,833.33"}},{"$f":"SUBTOTAL(109,Custos[2])","v":{"v":148333.33333333334,"d":"R$ 148,333.33"}},{"$f":"SUBTOTAL(109,Custos[3])","v":{"v":160833.33333333334,"d":"R$ 160,833.33"}}]
[]
["Os valores são calculados automaticamente na tabela Totais, que começa na célula à direita. A próxima instrução está na célula A40.","Totais","ANO","1","2","3"]
[null,"Benefícios líquido (custos)",null,{"$f":"Benefícios[[#Totals],[1]]-Custos[[#Totals],[1]]","v":{"v":9166.666666666657,"d":"R$ 9,166.67"}},{"$f":"Benefícios[[#Totals],[2]]-Custos[[#Totals],[2]]","v":{"v":26666.666666666657,"d":"R$ 26,666.67"}},{"$f":"Benefícios[[#Totals],[3]]-Custos[[#Totals],[3]]","v":{"v":39166.66666666666,"d":"R$ 39,166.67"}}]
[null,"Imposto",null,{"$f":"D33*AlíquotaDeImposto","v":{"v":2749.999999999997,"d":"R$ 2,750.00"}},{"$f":"E33*AlíquotaDeImposto","v":{"v":7999.999999999996,"d":"R$ 8,000.00"}},{"$f":"F33*AlíquotaDeImposto","v":{"v":11749.999999999996,"d":"R$ 11,750.00"}}]
[null,"Valor após redução de impostos",null,{"$f":"D33-D34","v":{"v":6416.666666666661,"d":"R$ 6,416.67"}},{"v":18666.66666666666,"d":"R$ 18,666.67"},{"v":27416.66666666666,"d":"R$ 27,416.67"}]
[null,"Depreciação readicionada",null,{"$f":"D29","v":{"v":63333.333333333336,"d":"R$ 63,333.33"}},{"$f":"E29","v":{"v":63333.333333333336,"d":"R$ 63,333.33"}},{"$f":"F29","v":{"v":63333.333333333336,"d":"R$ 63,333.33"}}]
[null,"Fluxo de caixa",{"$f":"-InvestimentoInicial[[#Totals],[ANO]]","v":{"v":-190000,"d":"-R$ 190,000.00"}},{"$f":"D35+D36","v":{"v":69750,"d":"R$ 69,750.00"}},{"v":82000,"d":"R$ 82,000.00"},{"v":90750,"d":"R$ 90,750.00"}]
[null,"Fluxo de caixa cumulativo",{"$f":"C37","v":{"v":-190000,"d":"-R$ 190,000.00"}},{"$f":"C38+D37","v":{"v":-120250,"d":"-R$ 120,250.00"}},{"v":-38250,"d":"-R$ 38,250.00"},{"v":52500,"d":"R$ 52,500.00"}]
[]
["As Métricas de avaliação são calculadas automaticamente na tabela Métricas, que começa na célula à direita.","Métricas de avaliação","Valores"]
[null,"Valor presente líquido (VPL)",{"$f":"C37+(NPV(ROR,D37:F37))","v":{"v":9359.504132231377,"d":"R$ 9,359.50"}}]
[null,"Taxa interna de retorno (TIR)",{"$f":"IRR(C37:F37)","v":{"v":0.12655165144706393,"d":"12.66%"}}]
[null,"Período de retorno (em anos)",{"$f":"IF(F38<=0,\"Excede em três anos\",IF(E38<=0,(F37-F38)/F37+2,IF(D38<=0,(E37-E38)/E37+1,IF(C38<=0,(D37-D38)/D37,\"NA\"))))","v":{"v":2.4214876033057853,"d":"2.42"}}]